fUST/lending_fUST_20250208
["ID","MTS","AMOUNT","RATE_DAILY","PERIOD"]
[352181951,1738979446720,-500.0,0.00011095,2]
[352181952,1738979446733,-501.4329323,0.00011095,2]
[352181953,1738979446746,-500.0,0.00011095,2]
[352181954,1738979446757,-500.0,0.00011095,2]
[352181955,1738979446766,-1264.89,0.00011095,2]
[352181956,1738979446775,-1008.48,0.00011095,2]
[352181957,1738979446783,-500.0,0.00011095,2]
[352181958,1738979446792,-500.0,0.00011095,2]
[352181959,1738979446801,-500.0,0.00011095,2]
[352181960,1738979446810,-500.0,0.00011095,2]
[352181961,1738979446819,-500.0,0.00011095,2]
[352181962,1738979446828,-501.51339002,0.00011095,2]
[352181963,1738979446837,-361.54748092,0.00011095,2]
[352181964,1738979446846,-500.51643778,0.00011095,2]
[352181965,1738979446855,-501.5042611,0.00011095,2]
[352181966,1738979446864,-789.33,0.00011095,2]
[352181967,1738979446872,-500.0,0.00011095,2]
[352181968,1738979446882,-501.29739721,0.00011095,2]
[352181969,1738979446891,-844.48,0.00011095,2]
[352181970,1738979446900,-501.60093864,0.00011095,2]
[352181971,1738979446909,-501.08375953,0.00011095,2]
[352181972,1738979446918,-500.0,0.00011095,2]
[352181973,1738979446928,-500.0,0.00011095,2]
[352181974,1738979446939,-500.0,0.00011095,2]
[352181975,1738979446951,-3477.33,0.00011095,2]
[352181976,1738979446961,-501.00860258,0.00011095,2]
[352181977,1738979446971,-500.0,0.00011095,2]
[352181978,1738979446980,-501.27575666,0.00011095,2]
[352181979,1738979446990,-362.15061903,0.00011095,2]
[352181980,1738979447000,-500.0,0.00011095,2]
[352181981,1738979447010,-500.0,0.00011095,2]
[352181982,1738979447019,-501.87606981,0.00011095,2]
[352181983,1738979447030,-500.0,0.00011095,2]
[352181984,1738979447040,-500.0,0.00011095,2]
[352181985,1738979447050,-521.96,0.00011095,2]
[352181986,1738979447059,-500.0,0.00011095,2]
[352181987,1738979447069,-502.21787482,0.00011095,2]
[352181988,1738979447078,-1149.0,0.00011095,2]
[352181989,1738979447088,-505.87272741,0.00011095,2]
[352181990,1738979447098,-502.46208824,0.00011095,2]
[352181991,1738979447108,-500.0,0.00011095,2]
[352181992,1738979447117,-500.0,0.00011095,2]
[352181993,1738979447127,-33591.09,0.00011095,2]
[352181994,1738979447137,-500.0,0.00011095,2]
[352181995,1738979447147,-501.13664834,0.00011095,2]
[352181996,1738979447156,-500.0,0.00011095,2]
[352181997,1738979447166,-500.79610588,0.00011095,2]
[352181998,1738979447176,-501.25438904,0.00011095,2]
[352181999,1738979447186,-500.0,0.00011095,2]
[352182000,1738979447195,-2738.07,0.00011095,2]
[352182001,1738979447204,-501.47443994,0.00011095,2]
[352182002,1738979447214,-500.0,0.00011095,2]
[352182003,1738979447224,-500.0,0.00011095,2]
[352182004,1738979447233,-500.0,0.00011095,2]
[352182005,1738979447242,-501.94479604,0.00011095,2]
[352182006,1738979447252,-500.0,0.00011095,2]
[352182007,1738979447261,-500.0,0.00011095,2]
[352182008,1738979447271,-500.0,0.00011095,2]
[352182009,1738979447280,-500.0,0.00011095,2]
[352182010,1738979447290,-500.0,0.00011095,2]
[352182011,1738979447300,-218.1979383,0.00011095,2]
[352182012,1738979447310,-500.0,0.00011095,2]
[352182013,1738979447319,-484.81204578,0.00011095,2]
[352182014,1738979447329,-500.0,0.00011095,2]
[352182015,1738979447338,-1274.52,0.00011095,2]
[352182016,1738979447348,-502.39017115,0.00011095,2]
[352182017,1738979447358,-500.0,0.00011095,2]
[352182018,1738979447367,-502.19243531,0.00011095,2]
[352182019,1738979447377,-1346.66,0.00011095,2]
[352182020,1738979447386,-500.0,0.00011095,2]
[352182021,1738979447395,-500.0,0.00011095,2]
[352182022,1738979447405,-500.0,0.00011095,2]
[352182023,1738979447414,-500.0,0.00011095,2]
[352182024,1738979447424,-500.0,0.00011095,2]
[352182025,1738979447433,-500.0,0.00011095,2]
[352182026,1738979447443,-500.0,0.00011095,2]
[352182027,1738979447454,-501.05740366,0.00011095,2]
[352182028,1738979447464,-746.29,0.00011095,2]
[352182029,1738979447473,-503.2706874,0.00011095,2]
[352182030,1738979447483,-1325.41,0.00011095,2]
[352182031,1738979447493,-11361.05,0.00011095,2]
[352182032,1738979447503,-500.0,0.00011095,2]
[352182033,1738979447513,-500.0,0.00011095,2]
[352182034,1738979447523,-500.0,0.00011095,2]
[352182035,1738979447534,-501.55257653,0.00011095,2]
[352182036,1738979447544,-500.0,0.00011095,2]
[352182037,1738979447554,-500.77310309,0.00011095,2]
[352182038,1738979447567,-500.0,0.00011095,2]
[352182039,1738979447582,-500.0,0.00011095,2]
[352182040,1738979447592,-500.0,0.00011095,2]
[352182041,1738979447602,-500.0,0.00011095,2]
[352182042,1738979447612,-1269.56,0.00011095,2]
[352182043,1738979447621,-500.0,0.00011095,2]
[352182044,1738979447631,-267.4740098,0.00011095,2]
[352182045,1738979447640,-500.0,0.00011095,2]
[352182046,1738979447650,-500.0,0.00011095,2]
[352182047,1738979447659,-500.0,0.00011095,2]
[352182048,1738979447669,-500.0,0.00011095,2]
[352182049,1738979447678,-500.0,0.00011095,2]
[352182050,1738979447688,-739.46,0.00011095,2]
[352182051,1738979447698,-500.0,0.00011095,2]
[352182052,1738979447708,-500.72600182,0.00011095,2]
[352182053,1738979447718,-500.0,0.00011095,2]
[352182054,1738979447730,-500.0,0.00011095,2]
[352182055,1738979447741,-500.0,0.00011095,2]
[352182056,1738979447751,-1729.3,0.00011095,2]
[352182057,1738979447760,-796.89,0.00011095,2]
[352182058,1738979447770,-213.97509323,0.00011095,2]
[352182059,1738979447780,-500.0,0.00011095,2]
[352182060,1738979447796,-206.32632135,0.00011095,2]
[352182061,1738979447806,-500.0,0.00011095,2]
[352182062,1738979447816,-500.0,0.00011095,2]
[352182063,1738979447826,-500.0,0.00011095,2]
[352182064,1738979447836,-500.0,0.00011095,2]
[352182065,1738979447846,-500.0,0.00011095,2]
[352182066,1738979447856,-500.0,0.00011095,2]
[352182067,1738979447867,-1112.48,0.00011095,2]
[352182068,1738979447877,-651.14,0.00011095,2]
[352182069,1738979447886,-500.0,0.00011095,2]
[352182070,1738979447896,-500.0,0.00011095,2]
[352182071,1738979447906,-503.12982092,0.00011095,2]
[352182072,1738979447916,-500.0,0.00011095,2]
[352182073,1738979447926,-597.18058898,0.00011095,2]
[352182074,1738979447936,-500.0,0.00011095,2]
[352182075,1738979447950,-500.0,0.00011095,2]
[352182076,1738979447960,-500.0,0.00011095,2]
[352182077,1738979447970,-500.0,0.00011095,2]
[352182078,1738979447981,-500.0,0.00011095,2]
[352182079,1738979447991,-500.0,0.00011095,2]
[352182080,1738979448002,-510.76850329,0.00011095,2]
[352182081,1738979448012,-500.0,0.00011095,2]
[352182082,1738979448024,-500.0,0.00011095,2]
[352182083,1738979448033,-500.0,0.00011095,2]
[352182084,1738979448044,-500.0,0.00011095,2]
[352182085,1738979448055,-2236.21,0.00011095,2]
[352182086,1738979448065,-500.0,0.00011095,2]
[352182087,1738979448076,-500.0,0.00011095,2]
[352182088,1738979448086,-506.20845166,0.00011095,2]
[352182089,1738979448096,-500.0,0.00011095,2]
[352182090,1738979448106,-500.98861283,0.00011095,2]
[352182091,1738979448116,-500.0,0.00011095,2]
[352182092,1738979448128,-364.180945,0.00011095,2]
[352182093,1738979448137,-527.37516668,0.00011095,2]
[352182094,1738979448148,-1362.48,0.00011095,2]
[352182095,1738979448158,-500.0,0.00011095,2]
[352182096,1738979448169,-4270.89,0.00011095,2]
[352182097,1738979448180,-2180.49,0.00011095,2]
[352182098,1738979448194,-501.18953021,0.00011095,2]
[352182099,1738979448206,-500.0,0.00011095,2]
[352182100,1738979448217,-540.01,0.00011095,2]
[352182101,1738979448233,-500.0,0.00011095,2]
[352182102,1738979448247,-500.0,0.00011095,2]
[352182103,1738979448258,-500.0,0.00011095,2]
[352182104,1738979448269,-500.0,0.00011095,2]
[352182105,1738979448279,-1068.9,0.00011095,2]
[352182106,1738979448289,-987.54,0.00011095,2]
[352182107,1738979448300,-502.86885473,0.00011095,2]
[352182108,1738979448311,-952.52,0.00011095,2]
[352182109,1738979448322,-501.40065633,0.00011095,2]
[352182110,1738979448333,-500.0,0.00011095,2]
[352182111,1738979448343,-2463.44,0.00011095,2]
[352182112,1738979448355,-500.0,0.00011095,2]
[352182113,1738979448366,-500.0,0.00011095,2]
[352182114,1738979448376,-500.0,0.00011095,2]
[352182115,1738979448387,-500.0,0.00011095,2]
[352182116,1738979448398,-500.0,0.00011095,2]
[352182117,1738979448409,-500.0,0.00011095,2]
[352182118,1738979448420,-500.0,0.00011095,2]
[352182119,1738979448431,-637.85,0.00011095,2]
[352182120,1738979448444,-500.0,0.00011095,2]
[352182121,1738979448456,-500.0,0.00011095,2]
[352182122,1738979448467,-500.0,0.00011095,2]
[352182123,1738979448483,-500.0,0.00011095,2]
[352182124,1738979448495,-500.0,0.00011095,2]
[352182125,1738979448506,-502.25414564,0.00011095,2]
[352182126,1738979448516,-3069.74,0.00011095,2]
[352182127,1738979448528,-543.16,0.00011095,2]
[352182128,1738979448537,-501.36482393,0.00011095,2]
[352182129,1738979448548,-500.0,0.00011095,2]
[352182130,1738979448559,-917.91,0.00011095,2]
[352182131,1738979448569,-500.0,0.00011095,2]
[352182132,1738979448579,-566.42,0.00011095,2]
[352182133,1738979448588,-825.57,0.00011095,2]
[352182134,1738979448599,-500.0,0.00011095,2]
[352182135,1738979448610,-327.09242884,0.00011095,2]
[352182136,1738979448621,-500.0,0.00011095,2]
[352182137,1738979448631,-500.0,0.00011095,2]
[352182138,1738979448641,-500.0,0.00011095,2]
[352182139,1738979448650,-500.0,0.00011095,2]
[352182140,1738979448661,-500.0,0.00011095,2]
[352182141,1738979448671,-1160.37,0.00011095,2]
[352182142,1738979448682,-500.0,0.00011095,2]
[352182143,1738979448693,-500.0,0.00011095,2]
[352182144,1738979448705,-500.0,0.00011095,2]
[352182145,1738979448714,-500.0,0.00011095,2]
[352182146,1738979448725,-500.0,0.00011095,2]
[352182147,1738979448736,-500.0,0.00011095,2]
[352182148,1738979448746,-500.0,0.00011095,2]
[352182149,1738979448758,-500.0,0.00011095,2]
[352182150,1738979448768,-500.0,0.00011095,2]
[352182151,1738979448779,-500.0,0.00011095,2]
[352182152,1738979448790,-500.0,0.00011095,2]
[352182153,1738979448801,-500.0,0.00011095,2]
[352182154,1738979448813,-580.47,0.00011095,2]
[352182155,1738979448824,-573.64,0.00011095,2]
[352182156,1738979448834,-502.52935587,0.00011095,2]
[352182157,1738979448843,-151.0,0.000112,2]
[352182158,1738979448853,-1435.52452144,0.00011223,2]
[352182159,1738979448863,-500.0,0.00011232,2]
[352182160,1738979448874,-500.0,0.00011232,2]
[352182161,1738979448884,-559.67788219,0.00011232,2]
[352182162,1738979448895,-504.08768708,0.00011232,2]
[352182163,1738979448906,-504.07738757,0.00011232,2]
[352182164,1738979448917,-503.67260431,0.00011232,2]
[352182165,1738979448927,-502.83936871,0.00011232,2]
[352182166,1738979448939,-502.42867812,0.00011232,2]
[352182167,1738979448955,-500.0,0.00011232,2]
[352182168,1738979448967,-500.0,0.00011232,2]
[352182169,1738979448979,-500.0,0.00011232,2]
[352182170,1738979448991,-194.75210441,0.00011232,2]
[352182171,1738979449002,-500.0,0.00011232,2]
[352182172,1738979449013,-202.21366367,0.00011232,2]
[352182173,1738979449022,-500.0,0.00011232,2]
[352182174,1738979449033,-504.68709974,0.00011232,2]
[352182175,1738979449044,-500.0,0.00011232,2]
[352182176,1738979449055,-292.11964998,0.00011232,2]
[352182177,1738979449066,-500.0,0.00011232,2]
[352182178,1738979449077,-500.0,0.00011232,2]
[352182179,1738979449088,-657.07,0.00011232,2]
[352182180,1738979449098,-500.0,0.00011232,2]
[352182181,1738979449108,-500.0,0.00011232,2]
[352182182,1738979449118,-452.83884202,0.00011232,2]
[352182183,1738979449129,-504.47256772,0.00011232,2]
[352182184,1738979449138,-601.15,0.00011232,2]
[352182185,1738979449148,-502.61583427,0.00011232,2]
[352182186,1738979449158,-829.19,0.00011232,2]
[352182187,1738979449168,-500.0,0.00011232,2]
[352182188,1738979449178,-530.17,0.00011232,2]
[352182189,1738979449187,-500.0,0.00011232,2]
[352182190,1738979449197,-504.01895371,0.00011232,2]
[352182191,1738979449207,-500.0,0.00011232,2]
[352182192,1738979449217,-502.15214565,0.00011232,2]
[352182193,1738979449227,-500.0,0.00011232,2]
[352182194,1738979449238,-500.0,0.00011232,2]
[352182195,1738979449379,-500.0,0.00011232,2]
[352182196,1738979449389,-500.0,0.00011232,2]
[352182197,1738979449398,-1053.48,0.00011232,2]
[352182198,1738979449408,-344.23643761,0.00011232,2]
[352182199,1738979449418,-500.0,0.00011232,2]
[352182200,1738979449428,-501.95912582,0.00011232,2]
[352182201,1738979449440,-500.0,0.00011232,2]
[352182202,1738979449450,-1033.63,0.00011232,2]
[352182203,1738979449459,-500.0,0.00011232,2]
[352182204,1738979449469,-795.31,0.00011232,2]
[352182205,1738979449479,-503.4108298,0.00011232,2]
[352182206,1738979449489,-500.0,0.00011232,2]
[352182207,1738979449499,-500.0,0.00011232,2]
[352182208,1738979449508,-500.0,0.00011232,2]
[352182209,1738979449518,-500.0,0.00011232,2]
[352182210,1738979449528,-500.0,0.00011232,2]
[352182211,1738979449538,-500.0,0.00011232,2]
[352182212,1738979449548,-502.27204048,0.00011232,2]
[352182213,1738979449559,-503.98788364,0.00011232,2]
[352182214,1738979449569,-504.27024746,0.00011232,2]
[352182215,1738979449579,-505.36504213,0.00011232,2]
[352182216,1738979449589,-503.72872154,0.00011232,2]
[352182217,1738979449599,-500.0,0.00011232,2]
[352182218,1738979449609,-500.0,0.00011232,2]
[352182219,1738979449619,-505.8729216,0.00011232,2]
[352182220,1738979449629,-504.2969336,0.00011232,2]
[352182221,1738979449639,-500.0,0.00011232,2]
[352182222,1738979449649,-500.0,0.00011232,2]
[352182223,1738979449659,-500.0,0.00011232,2]
[352182224,1738979449668,-500.0,0.00011232,2]
[352182225,1738979449678,-937.71,0.00011232,2]
[352182226,1738979449689,-331.44418723,0.00011232,2]
[352182227,1738979449699,-500.0,0.00011232,2]
[352182228,1738979449708,-500.0,0.00011232,2]
[352182229,1738979449717,-500.0,0.00011232,2]
[352182230,1738979449727,-500.0,0.00011232,2]
[352182231,1738979449736,-497.61770616,0.00011232,2]
[352182232,1738979449746,-500.0,0.00011232,2]
[352182233,1738979449756,-500.0,0.00011232,2]
[352182234,1738979449766,-771.92,0.00011232,2]
[352182235,1738979449777,-500.0,0.00011232,2]
[352182236,1738979449789,-500.0,0.00011232,2]
[352182237,1738979449799,-511.95118097,0.00011232,2]
[352182238,1738979449808,-500.0,0.00011232,2]
[352182239,1738979449817,-481.87752666,0.00011232,2]
[352182240,1738979449827,-500.0,0.00011232,2]
[352182241,1738979449836,-2484.5,0.00011232,2]
[352182242,1738979449845,-500.0,0.00011232,2]
[352182243,1738979449854,-500.0,0.00011232,2]
[352182244,1738979449864,-500.0,0.00011232,2]
[352182245,1738979449873,-503.38356112,0.00011232,2]
[352182246,1738979449882,-503.67293383,0.00011232,2]
[352182247,1738979449892,-572.57,0.00011232,2]
[352182248,1738979449902,-504.65025921,0.00011232,2]
[352182249,1738979449911,-500.0,0.00011232,2]
[352182250,1738979449921,-500.0,0.00011232,2]
[352182251,1738979449930,-500.0,0.00011232,2]
[352182252,1738979449939,-10233.27,0.00011232,2]
[352182253,1738979449953,-1134.68,0.00011232,2]
[352182254,1738979449962,-501.62356871,0.00011232,2]
[352182255,1738979449971,-501.60629592,0.00011232,2]
[352182256,1738979449980,-501.87996717,0.00011232,2]
[352182257,1738979449991,-152.83081549,0.00011232,2]
[352182258,1738979450000,-530.41,0.00011232,2]
[352182259,1738979450010,-500.0,0.00011232,2]
[352182260,1738979450019,-500.0,0.00011232,2]
[352182261,1738979450028,-500.0,0.00011232,2]
[352182262,1738979450039,-500.0,0.00011232,2]
[352182263,1738979450048,-1264.89,0.00011232,2]
[352182264,1738979450058,-1008.48,0.00011232,2]
[352182265,1738979450068,-500.0,0.00011232,2]
[352182266,1738979450077,-500.0,0.00011232,2]
[352182267,1738979450087,-503.49520543,0.00011232,2]
[352182268,1738979450096,-503.89976115,0.00011232,2]
[352182269,1738979450105,-500.0,0.00011232,2]
[352182270,1738979450114,-789.33,0.00011232,2]
[352182271,1738979450123,-500.0,0.00011232,2]
[352182272,1738979450132,-844.48,0.00011232,2]
[352182273,1738979450142,-500.0,0.00011232,2]
[352182274,1738979450152,-501.57779664,0.00011232,2]
[352182275,1738979450161,-500.0,0.00011232,2]
[352182276,1738979450170,-3477.33,0.00011232,2]
[352182277,1738979450180,-500.0,0.00011232,2]
[352182278,1738979450190,-500.0,0.00011232,2]
[352182279,1738979450199,-500.0,0.00011232,2]
[352182280,1738979450208,-500.0,0.00011232,2]
[352182281,1738979450217,-500.0,0.00011232,2]
[352182282,1738979450226,-521.96,0.00011232,2]
[352182283,1738979450235,-500.0,0.00011232,2]
[352182284,1738979450245,-1149.0,0.00011232,2]
[352182285,1738979450256,-170.60188658,0.00011232,2]
[352182286,1738979450267,-500.0,0.00011232,2]
[352182287,1738979450278,-500.0,0.00011232,2]
[352182288,1738979450287,-33591.09,0.00011232,2]
[352182289,1738979450302,-500.0,0.00011232,2]
[352182290,1738979450311,-500.0,0.00011232,2]
[352182291,1738979450321,-625.33361028,0.00011232,2]
[352182292,1738979450330,-501.94344663,0.00011232,2]
[352182293,1738979450340,-500.0,0.00011232,2]
[352182294,1738979450350,-2738.07,0.00011232,2]
[352182295,1738979450360,-502.35354507,0.00011232,2]
[352182296,1738979450369,-500.0,0.00011232,2]
[352182297,1738979450380,-502.13907655,0.00011232,2]
[352182298,1738979450390,-500.0,0.00011232,2]
[352182299,1738979450399,-500.0,0.00011232,2]
[352182300,1738979450409,-500.0,0.00011232,2]
[352182301,1738979450419,-500.0,0.00011232,2]
[352182302,1738979450429,-1274.52,0.00011232,2]
[352182303,1738979450439,-500.0,0.00011232,2]
[352182304,1738979450449,-1346.66,0.00011232,2]
[352182305,1738979450459,-500.0,0.00011232,2]
[352182306,1738979450469,-502.10651484,0.00011232,2]
[352182307,1738979450478,-500.0,0.00011232,2]
[352182308,1738979450486,-501.86320681,0.00011232,2]
[352182309,1738979450496,-500.0,0.00011232,2]
[352182310,1738979450506,-614.15177362,0.00011232,2]
[352182311,1738979450516,-500.0,0.00011232,2]
[352182312,1738979450526,-746.29,0.00011232,2]
[352182313,1738979450535,-1325.41,0.00011232,2]
[352182314,1738979450545,-11361.05,0.00011232,2]
[352182315,1738979450554,-500.0,0.00011232,2]
[352182316,1738979450564,-500.0,0.00011232,2]
[352182317,1738979450574,-500.0,0.00011232,2]
[352182318,1738979450583,-500.0,0.00011232,2]
[352182319,1738979450592,-500.0,0.00011232,2]
[352182320,1738979450602,-500.0,0.00011232,2]
[352182321,1738979450612,-500.0,0.00011232,2]
[352182322,1738979450622,-500.0,0.00011232,2]
[352182323,1738979450631,-1269.56,0.00011232,2]
[352182324,1738979450641,-500.0,0.00011232,2]
[352182325,1738979450650,-500.0,0.00011232,2]
[352182326,1738979450660,-500.0,0.00011232,2]
[352182327,1738979450671,-500.0,0.00011232,2]
[352182328,1738979450680,-500.0,0.00011232,2]
[352182329,1738979450691,-500.0,0.00011232,2]
[352182330,1738979450700,-739.46,0.00011232,2]
[352182331,1738979450710,-424.72585932,0.00011232,2]
[352182332,1738979450719,-500.0,0.00011232,2]
[352182333,1738979450728,-500.0,0.00011232,2]
[352182334,1738979450737,-500.0,0.00011232,2]
[352182335,1738979450747,-1729.3,0.00011232,2]
[352182336,1738979450756,-796.89,0.00011232,2]
[352182337,1738979450765,-500.0,0.00011232,2]
[352182338,1738979450775,-500.0,0.00011232,2]
[352182339,1738979450784,-502.19880338,0.00011232,2]
[352182340,1738979450793,-500.0,0.00011232,2]
[352182341,1738979450802,-500.0,0.00011232,2]
[352182342,1738979450811,-503.84211896,0.00011232,2]
[352182343,1738979450821,-500.0,0.00011232,2]
[352182344,1738979450830,-1112.48,0.00011232,2]
[352182345,1738979450840,-651.14,0.00011232,2]
[352182346,1738979450849,-500.0,0.00011232,2]
[352182347,1738979450859,-500.0,0.00011232,2]
[352182348,1738979450868,-500.0,0.00011232,2]
[352182349,1738979450877,-500.0,0.00011232,2]
[352182350,1738979450887,-500.0,0.00011232,2]
[352182351,1738979450896,-500.0,0.00011232,2]
[352182352,1738979450906,-500.0,0.00011232,2]
[352182353,1738979450915,-214.51251466,0.00011232,2]
[352182354,1738979450925,-500.0,0.00011232,2]
[352182355,1738979450934,-500.0,0.00011232,2]
[352182356,1738979450947,-500.0,0.00011232,2]
[352182357,1738979450957,-500.0,0.00011232,2]
[352182358,1738979450967,-500.0,0.00011232,2]
[352182359,1738979450976,-2236.21,0.00011232,2]
[352182360,1738979450987,-503.56031213,0.00011232,2]
[352182361,1738979450997,-500.0,0.00011232,2]
[352182362,1738979451007,-500.0,0.00011232,2]
[352182363,1738979451016,-500.0,0.00011232,2]
[352182364,1738979451028,-1362.48,0.00011232,2]
[352182365,1738979451038,-170.20082998,0.00011232,2]
[352182366,1738979451047,-4270.89,0.00011232,2]
[352182367,1738979451056,-2180.49,0.00011232,2]
[352182368,1738979451065,-500.0,0.00011232,2]
[352182369,1738979451075,-540.01,0.00011232,2]
[352182370,1738979451084,-500.0,0.00011232,2]
[352182371,1738979451094,-500.0,0.00011232,2]
[352182372,1738979451103,-500.0,0.00011232,2]
[352182373,1738979451113,-500.0,0.00011232,2]
[352182374,1738979451123,-1068.9,0.00011232,2]
[352182375,1738979451132,-987.54,0.00011232,2]
[352182376,1738979451142,-952.52,0.00011232,2]
[352182377,1738979451152,-500.0,0.00011232,2]
[352182378,1738979451162,-2463.44,0.00011232,2]
[352182379,1738979451171,-500.0,0.00011232,2]
[352182380,1738979451180,-500.0,0.00011232,2]
[352182381,1738979451190,-500.0,0.00011232,2]
[352182382,1738979451199,-500.0,0.00011232,2]
[352182383,1738979451208,-500.0,0.00011232,2]
[352182384,1738979451216,-500.0,0.00011232,2]
[352182385,1738979451227,-500.0,0.00011232,2]
[352182386,1738979451236,-637.85,0.00011232,2]
[352182387,1738979451246,-500.0,0.00011232,2]
[352182388,1738979451255,-503.90609499,0.00011232,2]
[352182389,1738979451265,-500.0,0.00011232,2]
[352182390,1738979451274,-500.0,0.00011232,2]
[352182391,1738979451283,-500.0,0.00011232,2]
[352182392,1738979451293,-3069.74,0.00011232,2]
[352182393,1738979451302,-543.16,0.00011232,2]
[352182394,1738979451311,-502.6365356,0.00011232,2]
[352182395,1738979451321,-917.91,0.00011232,2]
[352182396,1738979451330,-500.0,0.00011232,2]
[352182397,1738979451340,-566.42,0.00011232,2]
[352182398,1738979451349,-825.57,0.00011232,2]
[352182399,1738979451358,-501.83285241,0.00011232,2]
[352182400,1738979451368,-500.0,0.00011232,2]
[352182401,1738979451377,-500.0,0.00011232,2]
[352182402,1738979451386,-360.04309893,0.00011232,2]
[352182403,1738979451394,-500.0,0.00011232,2]
[352182404,1738979451403,-502.3868348,0.00011232,2]
[352182405,1738979451412,-1160.37,0.00011232,2]
[352182406,1738979451420,-502.38803843,0.00011232,2]
[352182407,1738979451430,-500.0,0.00011232,2]
[352182408,1738979451441,-500.0,0.00011232,2]
[352182409,1738979451451,-500.0,0.00011232,2]
[352182410,1738979451460,-638.51988366,0.00011232,2]
[352182411,1738979451470,-500.0,0.00011232,2]
[352182412,1738979451479,-500.0,0.00011232,2]
[352182413,1738979451488,-502.71699891,0.00011232,2]
[352182414,1738979451497,-504.14001609,0.00011232,2]
[352182415,1738979451507,-500.0,0.00011232,2]
[352182416,1738979451516,-500.0,0.00011232,2]
[352182417,1738979451526,-580.47,0.00011232,2]
[352182418,1738979451535,-573.64,0.00011232,2]
[352182419,1738979451544,-500.0,0.00011369,2]
[352182420,1738979451553,-500.0,0.00011369,2]
[352182421,1738979451563,-159.99381772,0.00011369,2]
[352182422,1738979451572,-500.0,0.00011369,2]
[352182423,1738979451581,-500.0,0.00011369,2]
[352182424,1738979451591,-500.0,0.00011369,2]
[352182425,1738979451601,-500.0,0.00011369,2]
[352182426,1738979451611,-500.0,0.00011369,2]
[352182427,1738979451620,-505.02632934,0.00011369,2]
[352182428,1738979451630,-500.0,0.00011369,2]
[352182429,1738979451639,-657.07,0.00011369,2]
[352182430,1738979451649,-500.0,0.00011369,2]
[352182431,1738979451659,-417.01022832,0.00011369,2]
[352182432,1738979451668,-601.15,0.00011369,2]
[352182433,1738979451678,-829.19,0.00011369,2]
[352182434,1738979451688,-551.25781359,0.00011369,2]
[352182435,1738979451698,-530.17,0.00011369,2]
[352182436,1738979451707,-500.0,0.00011369,2]
[352182437,1738979451716,-500.0,0.00011369,2]
[352182438,1738979451726,-500.0,0.00011369,2]
[352182439,1738979451734,-375.20356469,0.00011369,2]
[352182440,1738979451744,-500.0,0.00011369,2]
[352182441,1738979451753,-500.0,0.00011369,2]
[352182442,1738979451763,-1053.48,0.00011369,2]
[352182443,1738979451772,-506.09931562,0.00011369,2]
[352182444,1738979451781,-363.19377305,0.00011369,2]
[352182445,1738979451791,-1033.63,0.00011369,2]
[352182446,1738979451800,-500.0,0.00011369,2]
[352182447,1738979451810,-795.31,0.00011369,2]
[352182448,1738979451820,-500.0,0.00011369,2]
[352182449,1738979451829,-500.0,0.00011369,2]
[352182450,1738979451839,-500.0,0.00011369,2]